Workbook

Sheet 03.04
A2: МБОУ "СОШ №33" НМР РТ | D2: Отд./корп | E2: 1 неделя | H2: День | I2: 2023-04-03
A4: Раздел | B4: № рец. | C4: Блюдо | D4: Выход, г | E4: Цена | F4: Ккал | G4: Белки | H4: Жиры | I4: Угл-ды
A5: Завтрак
B6: 1 | C6: Бутерброд с маслом сливочным (30/10) | D6: 40 | F6: 136 | G6: 2.36 | H6: 7.49 | I6: 14.89
A7: 2 блюдо | B7: 174 | C7: Каша рисовая молочная с маслом сливочным | D7: 180/5 | F7: 220.60 | G7: 10.37 | H7: 9.86 | I7: 24.210
A8: напиток | B8: 376 | C8: Чай с сахаром с яблоком | D8: 200 | F8: 36.68 | G8: 0.11 | H8: 0.06 | I8: 8.97
A9: хлеб | C9: Батон нарезной | D9: 75 | F9: 195.52 | G9: 5.6 | H9: 2.16 | I9: 38.36
D10: 500 | E10: 37.55 | F10: =SUM(F6:F9) -> 588.80 | G10: =SUM(G6:G9) -> 18.44 | H10: 19.57 | I10: 86.43
A11: Обед
A12: 1 блюдо | B12: 88 | C12: Щи из свежей капусты с картофелем, со сметаной | D12: 200/5 | F12: 169.90 | G12: 4.54 | H12: 17.71 | I12: 6.50
A13: 2 блюдо | C13: Котлеты "Аппетитные" мясо-куриные | D13: 90 | F13: 228.35 | G13: 10.71 | H13: 10.04 | I13: 19.810
A14: гарнир | B14: 203 | C14: Макароны отварные с маслом слив. | D14: 150/3 | F14: 176.10 | G14: 5.68 | H14: 2.88 | I14: 41.960
A15: напиток | B15: 389 | C15: Сок фруктовы (нектар плодовый) | D15: 200 | F15: 84.80 | G15: 1.00 | H15: 0.00 | I15: 20.20
A16: хлеб | C16: Хлеб ржаной/пшеничный | D16: 45/20 | F16: 136.1 | G16: 4.49 | H16: 0.7 | I16: 27.66
D17: 713 | E17: 77.09 | F17: =SUM(F12:F16) -> 795.25 | G17: =SUM(G12:G16) -> 26.42 | H17: 31.33 | I17: 116.13
C18: бесп питание младшие + допол. питание | D18: =D10+D17 -> 1213 | E18: =SUM(E10+E17) -> 114.64 | F18: =SUM(F10+F17) -> 1384.05 | G18: =SUM(G10+G17) -> 44.86 | H18: 50.90 | I18: 202.56
A20: Горячий завтрак (младшие)
B21: 1 | C21: Бутерброд с маслом сливочным (30/10) | D21: 40 | F21: 136 | G21: 2.36 | H21: 7.49 | I21: 14.89
A22: 2 блюдо | C22: Котлеты "Аппетитные" мясо-куриные | D22: 90 | F22: 228.35 | G22: 10.71 | H22: 10.04 | I22: 19.810
A23: гарнир | B23: 203 | C23: Макароны отварные с маслом слив. | D23: 150/3 | F23: 176.10 | G23: 5.68 | H23: 2.88 | I23: 41.960
A24: гор.напиток | B24: 376 | C24: Чай с сахаром с яблоком | D24: 200 | F24: 36.68 | G24: 0.11 | H24: 0.06 | I24: 8.97
A25: хлеб | C25: Хлеб ржаной | D25: 20 | F25: 39.60 | G25: 1.32 | H25: 0.24 | I25: 7.92
C27: бесплатное питание младшие | D27: 503 | E27: 77.09 | F27: =SUM(F21:F25) -> 616.73 | G27: =SUM(G21:G25) -> 20.18 | H27: 20.71 | I27: 93.55
A29: Раздел | B29: № рец. | C29: Блюдо | D29: Выход, г | E29: Цена | F29: Ккал | G29: Белки | H29: Жиры | I29: Угл-ды
A30: Старшие
B31: 1 | C31: Бутерброд с маслом сливочным (30/10) | D31: 40 | F31: 136 | G31: 2.36 | H31: 7.49 | I31: 14.89
A32: 2 блюдо | C32: Котлеты "Аппетитные" мясо-куриные | D32: 100 | F32: 195.75 | G32: 9.75 | H32: 12.48 | I32: 6.400
A33: гарнир | B33: 203 | C33: Макароны отварные с маслом слив. | D33: 180/5 | F33: 220.56 | G33: 6.83 | H33: 4.43 | I33: 49.370
A34: гор.напиток | B34: 376 | C34: Чай с сахаром с яблоком | D34: 200 | F34: 36.68 | G34: 0.11 | H34: 0.06 | I34: 8.97
A35: хлеб | C35: Хлеб ржаной | D35: 30 | F35: 59.40 | G35: 1.98 | H35: 0.36 | I35: 11.88
C37: питание старшие | D37: 555 | E37: 78.50 | F37: =SUM(F31:F35) -> 648.39 | G37: =SUM(G31:G35) -> 21.03 | H37: 24.82 | I37: 91.51

Sheet 04.04
A2: МБОУ "СОШ №33" НМР РТ | D2: Отд./корп | E2: 1 неделя | H2: День | I2: 2023-04-04
A4: Раздел | B4: № рец. | C4: Блюдо | D4: Выход, г | E4: Цена | F4: Ккал | G4: Белки | H4: Жиры | I4: Угл-ды
A5: Завтрак
B6: 3 | C6: Бутерброд с сыром и сливочным маслом (30/15/5) | D6: 50 | F6: 155 | G6: 6.27 | H6: 7.86 | I6: 14.83
A7: 2 блюдо | B7: 173 | C7: Каша молочная геркулесовая | D7: 200 | F7: 105.00 | G7: 2.03 | H7: 3.86 | I7: 19.000
A8: напиток | B8: 379 | C8: Кофейный напиток с молоком | D8: 200 | F8: 60.10 | G8: 3.17 | H8: 2.68 | I8: 9.98
A9: хлеб | C9: Батон нарезной | D9: 50 | F9: 131 | G9: 3.75 | H9: 1.45 | I9: 25.7
D10: =SUM(D6:D9) -> 500 | E10: 37.55 | F10: =SUM(F6:F9) -> 451.10 | G10: =SUM(G6:G9) -> 15.22 | H10: 15.85 | I10: 69.51
A11: Обед
B12: 1 | C12: Бутерброд с повидлом и сливочным маслом | D12: 30/15/5 | F12: 141.5 | G12: 2.38 | H12: 3.87 | I12: 24.25
A13: 1 блюдо | B13: 96 | C13: Рассольник "Ленинградский" со сметаной | D13: 200/5 | F13: 93.90 | G13: 4.74 | H13: 4.82 | I13: 2.76
A14: гарнир | B14: 292 | C14: Овощи тушеные с мясом | D14: 50/150 | F14: 283.45 | G14: 11.01 | H14: 13.53 | I14: 30.880
A15: напиток | C15: Напиток из замороженных фруктов | D15: 200 | F15: 68.12 | G15: 0.20 | H15: 0.10 | I15: 19.82
A16: хлеб | C16: Хлеб ржаной/пшеничный | D16: 45/20 | F16: 136.1 | G16: 4.49 | H16: 0.9 | I16: 27.69
D17: 720 | E17: 77.09 | F17: =SUM(F12:F16) -> 723.07 | G17: =SUM(G12:G16) -> 22.82 | H17: 23.22 | I17: 105.40
C18: бесп питание младшие + допол. питание | D18: =D10+D17 -> 1220 | E18: =SUM(E10+E17) -> 114.64 | F18: =SUM(F10+F17) -> 1174.17 | G18: =SUM(G10+G17) -> 38.04 | H18: =SUM(H10+H17) -> 39.07 | I18: =SUM(I10+I17) -> 174.91
A20: Горячий завтрак (младшие)
B21: 1 | C21: Бутерброд с повидлом и сливочным маслом | D21: 30/15/5 | F21: 141.5 | G21: 2.38 | H21: 3.87 | I21: 24.25
A22: гарнир | B22: 292 | C22: Овощи тушеные с мясом 50/150 | D22: 50/150 | F22: 283.45 | G22: 11.01 | H22: 13.53 | I22: 30.880
A23: напиток | C23: Кофейный напиток с молоком | D23: 200 | F23: 60.10 | G23: 3.17 | H23: 2.68 | I23: 9.98
A24: хлеб | C24: Хлеб ржаной/пшеничный | D24: 20/30 | F24: 107.10 | G24: 3.60 | H24: 0.48 | I24: 22.68
C26: бесплатное питание младшие | D26: 500 | E26: 77.09 | F26: =SUM(F21:F24) -> 592.15 | G26: =SUM(G21:G24) -> 20.16 | H26: 20.56 | I26: 87.79
A28: Раздел | B28: № рец. | C28: Блюдо | D28: Выход, г | E28: Цена | F28: Ккал | G28: Белки | H28: Жиры | I28: Угл-ды
A29: Старшие
B30: 1 | C30: Бутерброд с повидлом и сливочным маслом | D30: 30/15/5 | F30: 141.5 | G30: 2.38 | H30: 3.87 | I30: 24.25
A31: гарнир | B31: 143, 241 | C31: Овощи тушеные с мясом 50/200 | D31: 250 | F31: 346.67 | G31: 15.33 | H31: 17.28 | I31: 29.500
A32: напиток | C32: Напиток из замороженных фруктов | D32: 200 | F32: 68.12 | G32: 0.20 | H32: 0.10 | I32: 19.82
A33: хлеб | C33: Хлеб ржаной/пшеничный | D33: 30/30 | F33: 129.90 | G33: 4.26 | H33: 0.60 | I33: 26.64
C35: питание старшие | D35: 560 | E35: 78.50 | F35: =SUM(F30:F33) -> 686.19 | G35: =SUM(G30:G33) -> 22.17 | H35: 21.85 | I35: 100.21

Sheet 05.04
A2: МБОУ "СОШ №33" НМР РТ | D2: Отд./корп | E2: 1 неделя | H2: День | I2: 2023-04-05
A4: Раздел | B4: № рец. | C4: Блюдо | D4: Выход, г | E4: Цена | F4: Ккал | G4: Белки | H4: Жиры | I4: Угл-ды
A5: Завтрак
C6: Фрукты (яблоки) | D6: 100 | F6: 47.00 | G6: 0.40 | H6: 0.40 | I6: 9.80
A7: 2 блюдо | B7: 173 | C7: Каша пшенная молочная с маслом сливочным | D7: 150/3 | F7: 237.07 | G7: 10.47 | H7: 14.10 | I7: 26.70
A8: напиток | B8: 376 | C8: Чай с сахаром | D8: 200 | F8: 32.00 | G8: 0.07 | H8: 0.02 | I8: 8.00
A9: хлеб | C9: Батон нарезной | D9: 50 | F9: 131 | G9: 3.75 | H9: 1.45 | I9: 25.7
D11: 503 | F11: =F6+F7+F8+F9+F10 -> 447.07 | G11: =G6+G7+G8+G9+G10 -> 14.69 | H11: =H6+H7+H8+H9+H10 -> 15.97 | I11: =I6+I7+I8+I9+I10 -> 70.20
A12: Обед
A13: доп.гарнир | B13: 12 | C13: Кукуруза консервированная | D13: 30 | F13: 29.79 | G13: 0.86 | H13: 1.85 | I13: 2.41
A14: 1 блюдо | B14: 113 | C14: Суп - лапша домашняя с картофелем | D14: 200 | F14: 71.21 | G14: 4.05 | H14: 7.43 | I14: 9.30
A15: 2 блюдо | B15: 294 | C15: Котлеты "Нежные" из куриных грудок | D15: 90 | F15: 79.80 | G15: 7.70 | H15: 6.03 | I15: 0.39
A16: гарнир | B16: 304 | C16: Рис отварной рассыпчатый с малом сливочным | D16: 150/3 | F16: 229.50 | G16: 3.68 | H16: 7.55 | I16: 10.73
A17: напиток | B17: 358 | C17: Кисель | D17: 200 | F17: 123.60 | G17: 0.60 | H17: 0.10 | I17: 30.20
A18: хлеб | C18: Хлеб ржаной/пшеничный | D18: 45/20 | F18: 136.1 | G18: 4.49 | H18: 0.9 | I18: 27.69
D19: 738 | F19: =SUM(F13:F18) -> 670.00 | G19: =SUM(G13:G18) -> 21.38 | H19: 23.86 | I19: 80.72
C20: бесп питание младшие + допол. питание | D20: =D11+D19 -> 1241 | E20: 114.64 | F20: =SUM(F11+F19) -> 1117.07 | G20: =SUM(G11+G19) -> 36.07 | H20: 39.83 | I20: 150.92
A22: Горячий завтрак (младшие)
A23: доп.гарнир | B23: 12 | C23: Кукуруза консервированная | D23: 30 | F23: 29.79 | G23: 0.86 | H23: 1.85 | I23: 2.41
A24: 2 блюдо | B24: 294 | C24: Котлеты "Нежные" из куриных грудок | D24: 90 | F24: 79.80 | G24: 7.70 | H24: 6.03 | I24: 0.39
A25: гарнир | B25: 304 | C25: Рис отварной рассыпчатый с малом сливочным | D25: 150/3 | F25: 229.50 | G25: 3.68 | H25: 7.55 | I25: 10.73
A26: напиток | B26: 376 | C26: Чай с сахаром | D26: 200 | F26: 32.00 | G26: 0.07 | H26: 0.02 | I26: 8.00
A27: хлеб | C27: Хлеб ржаной/пшеничный | D27: 20/30 | F27: 110.1 | G27: 3.6 | H27: 0.48 | I27: 22.68
C28: бесплатное питание младшие | D28: 523 | E28: 77.09 | F28: =SUM(F23:F27) -> 481.19 | G28: =SUM(G23:G27) -> 15.91 | H28: 15.93 | I28: 44.21
A30: Раздел | B30: № рец. | C30: Блюдо | D30: Выход, г | E30: Цена | F30: Ккал | G30: Белки | H30: Жиры | I30: Угл-ды
A31: Старшие
A32: доп.гарнир | B32: 12 | C32: Кукуруза консервированная | D32: 50 | F32: 29.79 | G32: 0.86 | H32: 1.85 | I32: 2.41
A33: 2 блюдо | B33: 294 | C33: Котлеты "Нежные" из куриных грудок | D33: 100 | F33: 262.00 | G33: 13.22 | H33: 13.44 | I33: 15.32
A34: гарнир | B34: 304 | C34: Рис отварной рассыпчатый с малом сливочным | D34: 180/3 | F34: 251.64 | G34: 4.38 | H34: 6.45 | I34: 44.02
A35: напиток | B35: 376 | C35: Чай с сахаром | D35: 200 | F35: 32.00 | G35: 0.07 | H35: 0.02 | I35: 8.00
A36: хлеб | C36: Хлеб ржаной/пшеничный | D36: 30/30 | F36: 129.9 | G36: 4.26 | H36: 0.6 | I36: 26.64
C38: питание старшие | D38: 593 | E38: 78.50 | F38: =SUM(F32:F36) -> 705.33 | G38: =SUM(G32:G36) -> 22.79 | H38: 22.36 | I38: 96.39

Sheet 06.04
A2: МБОУ "СОШ №33" НМР РТ | D2: Отд./корп | E2: 1 неделя | H2: День | I2: 2023-04-06
A4: Раздел | B4: № рец. | C4: Блюдо | D4: Выход, г | E4: Цена | F4: Ккал | G4: Белки | H4: Жиры | I4: Угл-ды
A5: Завтрак
A6: 2 блюдо | B6: 173 | C6: Каша гречневая молочная вязкая с маслом сливочным | D6: 180/5 | F6: 204.40 | G6: 9.74 | H6: 13.06 | I6: 9.83
A7: гор.напиток | C7: Чай с мармеладом | D7: 190/10 | F7: 29.80 | G7: 0.07 | H7: 0.02 | I7: 7.85
A8: хлеб | C8: Печенье | D8: 50 | F8: 203.50 | G8: 3.70 | H8: 4.70 | I8: 36.55
A9: хлеб | C9: Батон нарезной | D9: 65 | F9: 170.13 | G9: 4.87 | H9: 1.88 | I9: 33.38
D11: 500 | E11: 37.55 | F11: =SUM(F6:F9) -> 607.83 | G11: =SUM(G6:G9) -> 18.38 | H11: 19.66 | I11: 87.61
A12: Обед
A13: доп.гарнир | B13: 21 | C13: Огурцы соленые | D13: 50 | F13: 5.00 | G13: 0.40 | H13: 0.05 | I13: 0.85
A14: 1 блюдо | B14: 82 | C14: Борщ из свежей капусты с картофелем со сметаной | D14: 200/5 | F14: 91.10 | G14: 1.57 | H14: 2.69 | I14: 18.93
A15: 2 блюдо | B15: 284 | C15: Запеканка картофельная с мясом | D15: 50/130 | F15: 365.09 | G15: 15.09 | H15: 19.59 | I15: 28.15
A16: напиток | B16: 349 | C16: Напиток из сухофруктов | D16: 200 | F16: 84.80 | G16: 0.66 | H16: 0.09 | I16: 20.04
A17: хлеб | C17: Хлеб пшеничный/ржаной | D17: 20/45 | F17: 136.10 | G17: 4.49 | H17: 0.70 | I17: 27.66
D18: 700 | E18: 77.09 | F18: =SUM(F13:F17) -> 682.09 | G18: =SUM(G13:G17) -> 22.21 | H18: 23.12 | I18: 95.63
C19: бесп питание младшие + допол. питание | D19: =D11+D18 -> 1200 | E19: =SUM(E11+E18) -> 114.64 | F19: =SUM(F11+F18) -> 1289.92 | G19: =SUM(G11+G18) -> 40.59 | H19: 42.78 | I19: 183.24
A21: Горячий завтрак (младшие)
A22: фрукты | C22: Фрукты (яблоки) | D22: 100 | F22: 47.00 | G22: 0.40 | H22: 0.40 | I22: 9.80
A23: 2 блюдо | B23: 284 | C23: Запеканка картофельная с мясом 50/130 | D23: 50/130 | F23: 365.09 | G23: 15.09 | H23: 19.59 | I23: 28.15
A24: доп.гарнир | B24: 21 | C24: Огурцы соленые | D24: 50 | F24: 5.00 | G24: 0.40 | H24: 0.05 | I24: 0.85
A25: напиток | B25: 349 | C25: Напиток из сухофруктов | D25: 200 | F25: 84.80 | G25: 0.66 | H25: 0.09 | I25: 20.04
A26: хлеб | C26: Хлеб ржаной/пшеничный | D26: 20/30 | F26: 110.10 | G26: 3.60 | H26: 0.48 | I26: 22.68
C28: бесплатное питание младшие | D28: 580 | E28: 77.09 | F28: =SUM(F22:F26) -> 611.99 | G28: =SUM(G22:G26) -> 20.15 | H28: 20.61 | I28: 81.52
A30: Раздел | B30: № рец. | C30: Блюдо | D30: Выход, г | E30: Цена | F30: Ккал | G30: Белки | H30: Жиры | I30: Угл-ды
A31: Старшие
A32: фрукты | C32: Фрукты (яблоки) | D32: 100 | F32: 47.00 | G32: 0.80 | H32: 0.20 | I32: 7.50
A33: 2 блюдо | B33: 284 | C33: Запеканка картофельная с мясом с маслом слив. | D33: 240/10 | F33: 436.57 | G33: 17.54 | H33: 22.85 | I33: 34.00
A34: доп.гарнир | B34: 21 | C34: Огурцы соленые | D34: 30 | F34: 3.00 | G34: 0.24 | H34: 0.03 | I34: 0.51
A35: напиток | B35: 349 | C35: Напиток из сухофруктов | D35: 200 | F35: 84.80 | G35: 0.66 | H35: 0.09 | I35: 20.04
A36: хлеб | C36: Хлеб пшеничный/ржаной | D36: 30/30 | F36: 129.90 | G36: 4.26 | H36: 0.60 | I36: 26.64
C38: питание старшие | D38: 640 | E38: 78.50 | F38: =SUM(F32:F36) -> 701.27 | G38: =SUM(G32:G36) -> 23.50 | H38: 23.77 | I38: 88.69

Sheet 07.04
A2: МБОУ "СОШ №33" НМР РТ | D2: Отд./корп | E2: 1 неделя | H2: День | I2: 2023-04-07
A4: Раздел | B4: № рец. | C4: Блюдо | D4: Выход, г | E4: Цена | F4: Ккал | G4: Белки | H4: Жиры | I4: Углеводы
A5: Завтрак
A6: фрукты | C6: Фрукты (яблоки) | D6: 100 | F6: 47.00 | G6: 0.40 | H6: 0.40 | I6: 9.80
A7: 2 блюдо | B7: 223 | C7: Запеканка из творога со сгущенным молоком | D7: 130/20 | F7: 386 | G7: 14.2 | H7: 19.06 | I7: 38.99
A8: гор.напиток | B8: 377 | C8: Чай с сахаром и лимоном | D8: 187/8/5 | F8: 34.02 | G8: 0.13 | H8: 0.02 | I8: 8.20
A9: хлеб | C9: Батон нарезной | D9: 50 | F9: 131.00 | G9: 3.75 | H9: 1.45 | I9: 25.70
D11: 500 | E11: 37.55 | F11: =SUM(F6:F9) -> 598.02 | G11: =SUM(G6:G9) -> 18.48 | H11: 20.93 | I11: 82.69
A12: Обед
A13: 1 блюдо | B13: 119 | C13: Суп гороховый с гренками | D13: 200/10 | F13: 338.62 | G13: 7.49 | H13: 13.58 | I13: 38.36
A14: 2 блюдо | B14: 290 | C14: Птица тушеная в сметанно-томатном соусе | D14: 50/50 | F14: 166.00 | G14: 10.65 | H14: 11.66 | I14: 3.51
A15: гарнир | B15: 203 | C15: Макароны отварные с маслом сливочным | D15: 150 | F15: 169.42 | G15: 5.67 | H15: 2.12 | I15: 31.93
A16: напиток | B16: 342 | C16: Компот из свежих яблок | D16: 200 | F16: 46.60 | G16: 0.16 | H16: 0.16 | I16: 10.91
A17: хлеб | C17: Хлеб пшеничный/ржаной | D17: 20/45 | F17: 136.10 | G17: 4.49 | H17: 0.70 | I17: 27.66
D18: 725 | E18: 77.09 | F18: =SUM(F13:F17) -> 856.74 | G18: =SUM(G13:G17) -> 28.46 | H18: 28.22 | I18: 112.37
C19: бесп питание младшие + допол. питание | D19: =D11+D18 -> 1225 | E19: =SUM(E11+E18) -> 114.64 | F19: =SUM(F11+F18) -> 1454.76 | G19: =SUM(G11+G18) -> 46.94 | H19: =SUM(H11+H18) -> 49.15 | I19: =SUM(I11+I18) -> 195.06
A21: Горячий завтрак (младшие)
A22: фрукты | C22: Фрукты (яблоки) | D22: 100 | F22: 47.00 | G22: 0.40 | H22: 0.40 | I22: 9.80
A23: гарнир | B23: 223 | C23: Запеканка из творога со сгущенным молоком | D23: 130/20 | F23: 386 | G23: 14.2 | H23: 19.06 | I23: 38.99
A24: напиток | B24: 377 | C24: Чай с сахаром и лимоном | D24: 187/8/5 | F24: 34.02 | G24: 0.13 | H24: 0.02 | I24: 8.20
A25: хлеб | C25: Хлеб ржаной/пшеничный | D25: 20/30 | F25: 110.10 | G25: 3.60 | H25: 0.48 | I25: 22.68
C27: бесплатное питание младшие | D27: 500 | E27: 77.09 | F27: =SUM(F22:F25) -> 577.12 | G27: =SUM(G22:G25) -> 18.33 | H27: 19.96 | I27: 79.67
A29: Раздел | B29: № рец. | C29: Блюдо | D29: Выход, г | E29: Цена | F29: Ккал | G29: Белки | H29: Жиры | I29: Углеводы
A30: Старшие
A31: 1 блюдо | B31: 119 | C31: Суп гороховый с гренками | D31: 250/10 | F31: 364.25 | G31: 10.62 | H31: 7.83 | I31: 23.60
A32: 2 блюдо | B32: 222 | C32: Запеканка из творога со сгущенным молоком | D32: 170/30 | F32: 242.80 | G32: 9.98 | H32: 16.24 | I32: 55.06
A33: напиток | B33: 377 | C33: Чай с сахаром и лимоном | D33: 187/8/5 | F33: 34.02 | G33: 0.13 | H33: 0.02 | I33: 8.20
A34: хлеб | C34: Хлеб ржаной | D34: 30 | F34: 59.40 | G34: 1.98 | H34: 0.36 | I34: 11.88
C36: питание старшие | D36: 690 | E36: 78.50 | F36: =SUM(F31:F34) -> 700.47 | G36: =SUM(G31:G34) -> 22.71 | H36: 24.45 | I36: 98.74

Sheet 08.04
A2: МБОУ "СОШ №33" НМР РТ | D2: Отд./корп | E2: 1 неделя | H2: День | I2: 2023-04-08
A4: Раздел | B4: № рец. | C4: Блюдо | D4: Выход, г | E4: Цена | F4: Ккал | G4: Белки | H4: Жиры | I4: Угл-ды
A5: Старшие
A6: фрукты | C6: Фрукты (яблоки) | D6: 100 | F6: 47.00 | G6: 0.40 | H6: 0.40 | I6: 9.80
A7: 2 блюдо | B7: 279 | C7: Тефтели куриные с рисом паровые | D7: 100 | F7: 187.30 | G7: 13.67 | H7: 11.77 | I7: 9.85
A8: гарнир | B8: 303 | C8: Каша пшеничная вязкая на воде с маслом сливочным | D8: 180/3 | F8: 214.63 | G8: 4.83 | H8: 9.27 | I8: 29.51
A9: напиток | C9: Напиток из замороженных ягод | D9: 200 | F9: 68.12 | G9: 0.20 | H9: 0.10 | I9: 19.82
A10: хлеб | C10: Хлеб пшеничный/ржаной | D10: 30/30 | F10: 129.90 | G10: 4.26 | H10: 0.60 | I10: 26.64
C12: питание старшие | D12: 643 | E12: 78.50 | F12: =SUM(F6:F10) -> 646.95 | G12: =SUM(G6:G10) -> 23.36 | H12: 22.14 | I12: 95.62
